fUSD/lending_fUSD_20240222
["ID","MTS","AMOUNT","RATE_DAILY","PERIOD"]
[314847324,1708589441036,-500.0,0.00035616,2]
[314847325,1708589441046,-657.8,0.00035616,2]
[314847326,1708589441055,-506.70385653,0.00035616,2]
[314847327,1708589441065,-500.0,0.00035616,2]
[314847328,1708589441076,-500.0,0.00035616,2]
[314847329,1708589441085,-706.85,0.00035616,2]
[314847330,1708589441094,-500.0,0.00035616,2]
[314847331,1708589441103,-500.0,0.00035616,2]
[314847332,1708589441113,-500.0,0.00035616,2]
[314847333,1708589441122,-500.0,0.00035616,2]
[314847334,1708589441132,-504.25073393,0.00035616,2]
[314847335,1708589441141,-584.17,0.00035616,2]
[314847336,1708589441150,-500.0,0.00035616,2]
[314847337,1708589441160,-449.40770924,0.00035616,2]
[314847338,1708589441169,-1086.08,0.00035616,2]
[314847339,1708589441178,-500.0,0.00035616,2]
[314847340,1708589441188,-500.0,0.00035616,2]
[314847341,1708589441197,-366.01100263,0.00035616,2]
[314847342,1708589441206,-788.23,0.00035616,2]
[314847343,1708589441215,-500.0,0.00035616,2]
[314847344,1708589441224,-826.0,0.00035616,2]
[314847345,1708589441233,-776.02,0.00035616,2]
[314847346,1708589441245,-318.53614402,0.00035616,2]
[314847347,1708589441254,-500.0,0.00035616,2]
[314847348,1708589441264,-500.0,0.00035616,2]
[314847349,1708589441274,-398.55836324,0.00035616,2]
[314847350,1708589441283,-500.0,0.00035616,2]
[314847351,1708589441293,-500.0,0.00035616,2]
[314847352,1708589441302,-500.0,0.00035616,2]
[314847353,1708589441312,-525.57,0.00035616,2]
[314847354,1708589441322,-630.09,0.00035616,2]
[314847355,1708589441331,-1247.08,0.00035616,2]
[314847356,1708589441341,-500.0,0.00035616,2]
[314847357,1708589441350,-1345.24,0.00035616,2]
[314847358,1708589441360,-500.0,0.00035616,2]
[314847359,1708589441370,-500.0,0.00035616,2]
[314847360,1708589441379,-593.49948183,0.00035616,2]
[314847361,1708589441388,-441.93155954,0.00035616,2]
[314847362,1708589441397,-500.0,0.00035616,2]
[314847363,1708589441407,-500.0,0.00035616,2]
[314847364,1708589441416,-500.0,0.00035616,2]
[314847365,1708589441426,-500.0,0.00035616,2]
[314847366,1708589441435,-500.0,0.00035616,2]
[314847367,1708589441444,-500.0,0.00035616,2]
[314847368,1708589441453,-500.0,0.00035616,2]
[314847369,1708589441463,-500.0,0.00035616,2]
[314847370,1708589441472,-908.97,0.00035616,2]
[314847371,1708589441481,-1203.54,0.00035616,2]
[314847372,1708589441492,-504.37033962,0.00035616,2]
[314847373,1708589441502,-546.23127881,0.00035616,2]
[314847374,1708589441511,-504.14657211,0.00035616,2]
[314847375,1708589441520,-1408.38,0.00035616,2]
[314847376,1708589441530,-568.82,0.00035616,2]
[314847377,1708589441539,-500.0,0.00035616,2]
[314847378,1708589441550,-500.0,0.00035616,2]
[314847379,1708589441560,-500.0,0.00035616,2]
[314847380,1708589441570,-853.67,0.00035616,2]
[314847381,1708589441580,-508.40922676,0.00035616,2]
[314847382,1708589441589,-500.0,0.00035616,2]
[314847383,1708589441598,-500.0,0.00035616,2]
[314847384,1708589441608,-500.0,0.00035616,2]
[314847385,1708589441617,-500.0,0.00035616,2]
[314847386,1708589441627,-500.0,0.00035616,2]
[314847387,1708589441637,-500.0,0.00035616,2]
[314847388,1708589441646,-439.86403807,0.00035616,2]
[314847389,1708589441656,-301.45704444,0.00035616,2]
[314847391,1708589441667,-500.0,0.00035616,2]
[314847393,1708589441677,-500.0,0.00035616,2]
[314847394,1708589441687,-500.0,0.00035616,2]
[314847395,1708589441696,-508.25570105,0.00035616,2]
[314847396,1708589441707,-500.0,0.00035616,2]
[314847397,1708589441716,-500.0,0.00035616,2]
[314847398,1708589441726,-500.0,0.00035616,2]
[314847399,1708589441734,-915.22,0.00035616,2]
[314847400,1708589441748,-500.0,0.00035616,2]
[314847401,1708589441757,-641.02,0.00035616,2]
[314847402,1708589441767,-500.0,0.00035616,2]
[314847403,1708589441776,-500.0,0.00035616,2]
[314847404,1708589441786,-500.0,0.00035616,2]
[314847405,1708589441795,-500.0,0.00035616,2]
[314847406,1708589441805,-500.0,0.00035616,2]
[314847407,1708589441814,-500.0,0.00035616,2]
[314847408,1708589441823,-500.0,0.00035616,2]
[314847409,1708589441832,-510.86916188,0.00035616,2]
[314847410,1708589441842,-500.0,0.00035616,2]
[314847411,1708589441851,-500.0,0.00035616,2]
[314847412,1708589441860,-500.0,0.00035616,2]
[314847413,1708589441870,-554.06794135,0.00035616,2]
[314847414,1708589441976,-344.34456887,0.00035616,2]
[314847415,1708589441986,-725.34,0.00035616,2]
[314847416,1708589442000,-529.85,0.00035616,2]
[314847417,1708589442010,-500.0,0.00035616,2]
[314847418,1708589442019,-354.55542988,0.00035616,2]
[314847419,1708589442029,-500.0,0.00035616,2]
[314847420,1708589442038,-500.0,0.00035616,2]
[314847421,1708589442049,-518.63,0.00035616,2]
[314847422,1708589442057,-500.0,0.00035616,2]
[314847423,1708589442067,-500.0,0.00035616,2]
[314847424,1708589442077,-736.76,0.00035616,2]
[314847425,1708589442087,-500.0,0.00035616,2]
[314847426,1708589442096,-500.0,0.00035616,2]
[314847427,1708589442106,-1374.71,0.00035616,2]
[314847428,1708589442115,-500.0,0.00035616,2]
[314847429,1708589442124,-1263.45,0.00035616,2]
[314847430,1708589442133,-500.0,0.00035616,2]
[314847431,1708589442142,-500.0,0.00035616,2]
[314847432,1708589442152,-745.25,0.00035616,2]
[314847433,1708589442161,-500.0,0.00035616,2]
[314847434,1708589442170,-378.00276817,0.00035616,2]
[314847435,1708589442181,-513.38810701,0.00035616,2]
[314847436,1708589442190,-500.0,0.00035616,2]
[314847437,1708589442200,-680.99,0.00035616,2]
[314847438,1708589442210,-500.0,0.00035616,2]
[314847439,1708589442219,-500.0,0.00035616,2]
[314847440,1708589442228,-500.0,0.00035616,2]
[314847441,1708589442237,-500.0,0.00035616,2]
[314847442,1708589442247,-500.0,0.00035616,2]
[314847443,1708589442256,-500.0,0.00035616,2]
[314847444,1708589442266,-500.0,0.00035616,2]
[314847445,1708589442275,-500.0,0.00035616,2]
[314847446,1708589442286,-500.0,0.00035616,2]
[314847447,1708589442295,-636.24,0.00035616,2]
[314847448,1708589442304,-500.0,0.00035616,2]
[314847449,1708589442313,-581.86,0.00035616,2]
[314847450,1708589442322,-500.0,0.00035616,2]
[314847451,1708589442331,-500.0,0.00035616,2]
[314847452,1708589442341,-153.07968329,0.00035616,2]
[314847453,1708589442350,-500.0,0.00035616,2]
[314847454,1708589442359,-500.0,0.00035616,2]
[314847455,1708589442369,-1067.78,0.00035616,2]
[314847456,1708589442378,-524.74291876,0.00035616,2]
[314847457,1708589442387,-2593.57,0.00035616,2]
[314847458,1708589442396,-511.08548479,0.00035616,2]
[314847459,1708589442405,-732.28,0.00035616,2]
[314847460,1708589442413,-500.0,0.00035616,2]
[314847461,1708589442422,-500.0,0.00035616,2]
[314847462,1708589442431,-505.75933564,0.00035616,2]
[314847463,1708589442440,-500.0,0.00035616,2]
[314847464,1708589442449,-500.0,0.00035616,2]
[314847465,1708589442458,-500.0,0.00035616,2]
[314847466,1708589442467,-508.18018014,0.00035616,2]
[314847467,1708589442476,-510.19147109,0.00035616,2]
[314847468,1708589442485,-500.0,0.00035616,2]
[314847469,1708589442496,-644.42,0.00035616,2]
[314847470,1708589442505,-2594.85,0.00035616,2]
[314847471,1708589442514,-500.0,0.00035616,2]
[314847472,1708589442524,-500.0,0.00035616,2]
[314847473,1708589442532,-649.29,0.00035616,2]
[314847474,1708589442542,-500.0,0.00035616,2]
[314847475,1708589442551,-628.83,0.00035616,2]
[314847476,1708589442561,-500.0,0.00035616,2]
[314847477,1708589442570,-515.12176087,0.00035616,2]
[314847478,1708589442580,-742.55,0.00035616,2]
[314847479,1708589442589,-3000.0,0.00035616,2]
[314847480,1708589442598,-720.3,0.00035616,2]
[314847481,1708589442608,-500.0,0.00035616,2]
[314847482,1708589442617,-500.0,0.00035616,2]
[314847483,1708589442627,-500.0,0.00035616,2]
[314847484,1708589442636,-500.0,0.00035616,2]
[314847485,1708589442645,-590.93,0.00035616,2]
[314847486,1708589442654,-575.21391225,0.00035616,2]
[314847487,1708589442663,-500.0,0.00035616,2]
[314847488,1708589442673,-500.0,0.00035616,2]
[314847489,1708589442682,-514.73374373,0.00035616,2]
[314847490,1708589442691,-150.0,0.00035616,2]
[314847491,1708589442701,-3188.07,0.00035616,2]
[314847492,1708589442710,-500.0,0.00035616,2]
[314847493,1708589442719,-500.0,0.00035616,2]
[314847494,1708589442728,-500.0,0.00035616,2]
[314847495,1708589442738,-1621.76,0.00035616,2]
[314847496,1708589442751,-500.0,0.00035616,2]
[314847497,1708589442761,-500.0,0.00035616,2]
[314847498,1708589442770,-500.0,0.00035616,2]
[314847499,1708589442779,-500.0,0.00035616,2]
[314847500,1708589442789,-1282.85,0.00035616,2]
[314847501,1708589442798,-1032.42,0.00035616,2]
[314847502,1708589442808,-1130.09,0.00035616,2]
[314847503,1708589442817,-500.0,0.00035616,2]
[314847504,1708589442826,-500.0,0.00035616,2]
[314847505,1708589442836,-500.0,0.00035616,2]
[314847506,1708589442845,-500.0,0.00035616,2]
[314847507,1708589442855,-500.0,0.00035616,2]
[314847508,1708589442864,-500.0,0.00035616,2]
[314847509,1708589442874,-500.0,0.00035616,2]
[314847510,1708589442883,-544.21633157,0.00035616,2]
[314847511,1708589442893,-500.0,0.00035616,2]
[314847512,1708589442903,-500.0,0.00035616,2]
[314847513,1708589442912,-500.0,0.00035616,2]
[314847515,1708589442922,-500.0,0.00035616,2]
[314847516,1708589442931,-1007.37,0.00035616,2]
[314847517,1708589442941,-507.89838842,0.00035616,14]
[314847518,1708589442951,-500.0,0.00035616,2]
[314847519,1708589442961,-500.0,0.00035616,2]
[314847520,1708589442970,-500.0,0.00035616,2]
[314847521,1708589442986,-500.0,0.00035616,2]
[314847523,1708589442998,-500.0,0.00035616,2]
[314847524,1708589443006,-879.54,0.00035616,2]
[314847525,1708589443017,-500.0,0.00035616,2]
[314847526,1708589443026,-1344.49,0.00035616,2]
[314847528,1708589443036,-551.91,0.00035616,2]
[314847530,1708589443045,-500.0,0.00035616,2]
[314847532,1708589443054,-500.0,0.00035616,2]
[314847533,1708589443063,-500.0,0.00035616,2]
[314847534,1708589443072,-1067.63,0.00035616,2]
[314847535,1708589443082,-500.0,0.00035616,2]
[314847536,1708589443091,-500.0,0.00035616,2]
[314847537,1708589443100,-500.0,0.00035616,2]
[314847538,1708589443109,-500.0,0.00035616,2]
[314847539,1708589443143,-500.0,0.00035616,2]
[314847540,1708589443152,-926.68,0.00035616,2]
[314847541,1708589443161,-500.0,0.00035616,2]
[314847542,1708589443170,-500.0,0.00035616,2]
[314847543,1708589443179,-500.0,0.00035616,2]
[314847544,1708589443190,-500.0,0.00035616,2]
[314847545,1708589443199,-1451.71,0.00035616,2]
[314847546,1708589443208,-500.0,0.00035616,2]
[314847547,1708589443217,-1728.16,0.00035616,2]
[314847548,1708589443226,-764.25,0.00035616,2]
[314847549,1708589443236,-500.0,0.00035616,2]
[314847550,1708589443246,-3142.2,0.00035616,2]
[314847551,1708589443256,-500.0,0.00035616,2]
[314847552,1708589443265,-204.13008038,0.00035616,2]
[314847553,1708589443273,-725.10616459,0.00035616,2]
[314847554,1708589443312,-627.62684945,0.00035616,2]
[314847555,1708589443323,-385.33323618,0.00035616,2]
[314847556,1708589443335,-3751.69749833,0.00035616,2]
[314847557,1708589443347,-2698.75625145,0.00035616,2]
[314847558,1708589443356,-500.0,0.00035616,2]
[314847559,1708589443365,-577.27513459,0.00035616,2]
[314847560,1708589443374,-4676.99,0.00035616,2]
[314847561,1708589443383,-948.01,0.00035616,2]
[314847562,1708589443392,-500.0,0.00035616,2]
[314847563,1708589443402,-876.14,0.00035616,2]
[314847564,1708589443410,-500.0,0.00035616,2]
[314847565,1708589443419,-500.0,0.00035616,2]
[314847566,1708589443429,-500.0,0.00035616,2]
[314847567,1708589443439,-500.0,0.00035616,2]
[314847568,1708589443448,-545.28034099,0.00035616,2]
[314847569,1708589443458,-1427.36,0.00035616,2]
[314847570,1708589443467,-500.0,0.00035616,2]
[314847571,1708589443476,-500.0,0.00035616,2]
[314847572,1708589443486,-500.0,0.00035616,2]
[314847573,1708589443497,-500.0,0.00035616,2]
[314847574,1708589443507,-500.0,0.00035616,2]
[314847575,1708589443517,-1273.99,0.00035616,2]
[314847576,1708589443527,-968.08,0.00035616,2]
[314847577,1708589443538,-500.0,0.00035616,2]
[314847578,1708589443548,-611.15,0.00035616,2]
[314847579,1708589443559,-1803.16,0.00035616,2]
[314847580,1708589443569,-1615.48,0.00035616,2]
[314847581,1708589443578,-500.0,0.00035616,2]
[314847582,1708589443588,-500.0,0.00035616,2]
[314847583,1708589443596,-521.43,0.00035616,2]
[314847584,1708589443606,-500.0,0.00035616,2]
[314847585,1708589443616,-11514.2,0.00035616,2]
[314847586,1708589443625,-9429.97,0.00035616,2]
[314847587,1708589443634,-500.0,0.00035616,2]
[314847589,1708589443643,-500.0,0.00035616,2]
[314847590,1708589443652,-642.83721505,0.00035616,2]
[314847592,1708589443661,-500.0,0.00035616,2]
[314847594,1708589443670,-704.96,0.00035616,2]
[314847596,1708589443678,-500.0,0.00035616,2]
[314847598,1708589443688,-846.16,0.00035616,2]
[314847600,1708589443697,-500.0,0.00035616,2]
[314847603,1708589443706,-267.3897741,0.00035616,2]
[314847606,1708589443719,-3641.17888859,0.00035616,2]
[314847609,1708589443741,-333.9002369,0.00035616,2]
[314847612,1708589443752,-905.84131018,0.00035616,2]
[314847624,1708589446447,-538.08,0.00032602,2]
[314847625,1708589446457,-993.56012691,0.00034694,2]
[314847626,1708589446485,-749.54311787,0.00034694,2]
[314847627,1708589446499,-741.27723955,0.00034694,2]
[314847628,1708589446513,-420.8888349,0.00034694,2]
[314847629,1708589446526,-313.89851893,0.00034694,2]
[314847630,1708589446538,-299.08,0.00034694,2]
[314847631,1708589446555,-417.121379,0.00034694,2]
[314847632,1708589446568,-1844.04168284,0.00034694,2]
[314847633,1708589446578,-228.09576645,0.00035614,3]
[314847634,1708589446607,-11373.7946,0.00035614,3]
[314847635,1708589446620,-12359.91847733,0.00035614,3]
[314847636,1708589446633,-4227.07394698,0.00035614,3]
[314847637,1708589446647,-254.4169725,0.00035614,3]
[314847638,1708589446664,-281.55,0.00035614,3]
[314847639,1708589446676,-12188.8986404,0.00035614,3]
[314847640,1708589446689,-19524.30090462,0.00035614,3]
[314847642,1708589446715,-635183.73792918,0.00035614,3]
[314847643,1708589446727,-289.4002629,0.00035614,3]
[314847644,1708589446740,-13683.44939837,0.00035614,3]
[314847645,1708589446754,-2283.66534831,0.00035614,3]
[314847646,1708589446789,-285.49172499,0.00035614,3]
[314847647,1708589446802,-553.19678644,0.00035614,3]
[314847648,1708589446814,-85954.72890248,0.00035614,3]
[314847649,1708589446827,-664.88675611,0.00035614,3]
[314847650,1708589446839,-648.7800288,0.00035614,3]
[314847651,1708589448125,-16047.68539066,0.00035614,3]
[314847652,1708589448153,-3448.69487683,0.00035614,3]
[314847653,1708589448166,-1035.415,0.00035614,3]
[314847654,1708589448184,-403.93902329,0.00035614,3]
[314847655,1708589449545,-2787.97357038,0.00035614,3]
[314847656,1708589449558,-1525.57672096,0.00035614,3]
[314847657,1708589449570,-81779.96028989,0.00035614,3]
[314847658,1708589449607,-150.0,0.0003561,2]
[314847659,1708589449617,-5479.02968902,0.00035614,3]
[314847660,1708589449637,-653.03474555,0.00035614,3]
[314847661,1708589449653,-4491.07497329,0.00035614,3]
[314847662,1708589449666,-2978.80702217,0.00035614,3]
[314847663,1708589449695,-2716.20044504,0.00035614,3]
[314847664,1708589449707,-1229.13409554,0.00035614,3]
[314847665,1708589449723,-1147.97465647,0.00035614,3]
[314847666,1708589451359,-433.24230954,0.00034693,4]
[314847667,1708589451369,-1066.75769046,0.00035613,4]
[314847668,1708589451397,-2602.65188514,0.00035613,4]
[314847669,1708589451406,-284.47877778,0.00035614,3]
[314847670,1708589451418,-2808.9905031,0.00035614,3]
[314847671,1708589451429,-4275.19642379,0.00035614,3]
[314847672,1708589451523,-11136.7576042,0.00035614,3]
[314847673,1708589451537,-149425.0,0.00035614,3]
[314847674,1708589451552,-1975.37433958,0.00035614,3]
[314847675,1708589451563,-13096.24999997,0.00035614,3]
[314847676,1708589451583,-3572.13985417,0.00035614,3]
[314847677,1708589451605,-1502.24106704,0.00035614,3]
[314847678,1708589451630,-635.38561209,0.00035614,3]
[314847679,1708589451642,-19807.35352731,0.00035614,3]
[314847686,1708589926969,1020.0,0.00026,2]
[314847702,1708590631513,-198.24773333,0.00030491,2]
[314847703,1708590631523,-445.21493935,0.0003058,4]
[314847704,1708590631535,-964.22328571,0.0003058,4]
[314847705,1708590631545,-2641.54261631,0.0003058,4]
[314847706,1708590631557,-17949.07802241,0.0003058,4]
[314847707,1708590631566,-3669.4095756,0.00030581,4]
[314847708,1708590631575,-619.19,0.00030591,2]
[314847709,1708590631584,-169.98096639,0.00030895,5]
[314847710,1708590631593,-150.0,0.00030991,2]
[314847711,1708590631602,-400.0,0.00030991,2]
[314847712,1708590631611,-173.0,0.00030993,2]
[314847713,1708590631620,-16991.68976281,0.00030995,4]
[314847714,1708590631630,-16991.68976281,0.00030995,4]
[314847715,1708590631639,-1000.0,0.00031,4]
[314847716,1708590631648,-169.98096637,0.00031984,5]
[314847717,1708590631657,-250.0,0.00032056,2]
[314847718,1708590631666,-186152.58763814,0.00032186,2]
[314847719,1708590631682,-413.6,0.00032186,2]
[314847720,1708590631693,-81875.02165,0.00032186,2]
[314847721,1708590631799,-13571.3555678,0.00032186,2]
[314847722,1708590631810,-1831.99,0.00032186,2]
[314847723,1708590631853,-561.5372734,0.00032186,2]
[314847731,1708590637399,-20590.62063872,0.0003058,4]
[314847732,1708590637410,-60606.43535373,0.00032186,2]
[314847733,1708590637422,-7921.27584198,0.00032186,2]
[314847750,1708590638308,-2521.95430815,0.00032186,2]
[314847751,1708590638347,-929.70050331,0.00032186,2]
[314847752,1708590638408,-79539.2484476,0.00032186,2]
[314847753,1708590638418,-155.0,0.00032186,2]
[314847754,1708590638428,-16991.68976281,0.00032188,4]
[314847755,1708590638439,-40515.6,0.00032188,2]
[314847756,1708590638448,-198.24773332,0.00032196,2]
[314847757,1708590638457,-155.22,0.00032296,2]
[314847758,1708590638466,-2000.0,0.00032372,2]
[314847759,1708590638476,-316.28,0.00032377,2]
[314847760,1708590638485,-155.22,0.00032385,2]
[314847761,1708590638494,-179.09,0.00032399,2]
[314847762,1708590638503,-3990.0,0.00032434,2]
[314847763,1708590638513,-500.0,0.00032449,2]
[314847764,1708590638522,-288.0,0.00032456,2]
[314847765,1708590638531,-155.22,0.00032473,2]
[314847766,1708590638543,-161.16,0.0003252,2]
[314847767,1708590638557,-250.0,0.00032524,2]
[314847768,1708590638567,-513.46,0.00032541,2]
[314847769,1708590638576,-155.22,0.00032562,2]
[314847770,1708590638585,-155.22,0.00032651,2]
[314847771,1708590638595,-155.22,0.00032739,2]
[314847772,1708590638605,-155.22,0.00032828,2]
[314847773,1708590638614,-619.19,0.00032855,2]
[314847774,1708590638624,-161.65,0.00032877,2]
[314847775,1708590638634,-155.22,0.00032916,2]
[314847776,1708590638644,-1354.78660773,0.00032998,4]
[314847777,1708590638654,-433.24230954,0.00032999,4]
[314847778,1708590638664,-10000.0,0.00033,2]
[314847779,1708590638674,-1000.0,0.00033,4]
[314847780,1708590638684,-155.22,0.00033005,2]
[314847781,1708590638694,-169.98096637,0.00033072,6]
[314847782,1708590638703,-155.22,0.00033093,2]
[314847783,1708590638713,-152.0,0.00033104,3]
[314847784,1708590638723,-155.22,0.00033182,2]
[314847785,1708590638732,-155.22,0.00033271,2]
[314847786,1708590638741,-155.22,0.00033359,2]
[314847787,1708590638750,-155.22,0.00033448,2]
[314847788,1708590638759,-155.22,0.00033536,2]
[314847789,1708590638768,-155.22,0.00033625,2]
[314847790,1708590638777,-155.22,0.00033713,2]
[314847791,1708590638787,-155.22,0.00033802,2]
[314847792,1708590638796,-800.0,0.00033808,2]
[314847793,1708590638805,-161.23468206,0.00033835,3]
[314847794,1708590638814,-499.99,0.00033835,2]
[314847795,1708590638824,-155.22,0.00033891,2]
[314847796,1708590638833,-2500.0,0.00033898,2]
[314847797,1708590638842,-290.38287944,0.000339,2]
[314847798,1708590638851,-198.24773332,0.000339,2]
[314847799,1708590638861,-151.928271,0.000339,2]
[314847800,1708590638870,-176.57217169,0.000339,2]
[314847801,1708590638879,-724.2402001,0.000339,2]
[314847802,1708590638889,-400.75867612,0.000339,2]
[314847803,1708590638898,-250.35608769,0.000339,2]
[314847804,1708590638907,-2043.91176475,0.000339,2]
[314847805,1708590638916,-636.61563196,0.000339,2]
[314847806,1708590638926,-1522.30382208,0.000339,2]
[314847807,1708590638935,-330.87549303,0.000339,2]
[314847808,1708590638944,-800.0,0.00033973,2]
[314847809,1708590638953,-155.22,0.00033979,2]
[314847810,1708590638963,-712.0,0.00033981,2]
[314847811,1708590638972,-585.77953024,0.00033998,4]
[314847812,1708590638985,-4622.91706976,0.00033998,4]
[314847813,1708590638995,-151.022216,0.00033998,2]
[314847814,1708590639005,-151.022216,0.00033998,2]
[314847815,1708590639014,-52591.95220944,0.00033999,3]
[314847817,1708590640549,-885.15747833,0.00033999,3]
[314847818,1708590640562,-518.13,0.00033999,3]
[314847819,1708590640673,-393980.11472523,0.00033999,3]
[314847820,1708590640714,-58676.72119045,0.00033999,3]
[314847824,1708590642355,-6182.09254191,0.00033999,3]
[314847825,1708590642368,-5664.35971925,0.00033999,3]
[314847826,1708590642382,-6820.27649999,0.00033999,3]
[314847827,1708590642420,-155559.00000003,0.00033999,3]
[314847828,1708590642677,-550.0,0.00033999,3]
[314847829,1708590642689,-10170.64606935,0.00033999,3]
[314847830,1708590642778,-2066.2916612,0.00033999,3]
[314847833,1708590642790,-756.18999622,0.00033999,3]
[314847835,1708590642803,-377.5310902,0.00033999,3]
[314847877,1708590645465,-5182.97615926,0.00033999,3]
[314847878,1708590645558,-508.27539256,0.00033999,3]
[314847879,1708590645580,-3919.46961341,0.00033999,3]
[314847880,1708590645604,-633088.45677861,0.00033999,3]
[314847881,1708590645614,-1048.76037752,0.00033999,4]
[314847882,1708590645624,-98691.27887479,0.00034,2]
[314847883,1708590645754,-101308.72112521,0.00034,2]
[314847884,1708590645764,-189624.76892043,0.00034,2]
[314847885,1708590645796,-500.0,0.00034,2]
[314847886,1708590645841,-644.41986421,0.00034,2]
[314847887,1708590645853,-9230.81121536,0.00034,2]
[314847888,1708590645862,-2016.71,0.00034048,2]
[314847889,1708590645872,-210.0,0.0003409,3]
[314847892,1708590645881,-151.928271,0.00034123,2]
[314847894,1708590645891,-161.16,0.00034146,2]
[314847896,1708590645901,-169.98096637,0.00034161,6]
[314847897,1708590645910,-513.46,0.00034184,2]
[314847898,1708590645919,-204.84,0.00034189,2]
[314847899,1708590645928,-151.928271,0.00034345,2]
[314847900,1708590645937,-152.88,0.00034351,2]
[314847901,1708590645947,-290.3828794,0.00034441,2]
[314847902,1708590645956,-209.0,0.0003447,2]
[314847903,1708590645965,-168.63,0.00034491,2]
[314847904,1708590645976,-404.28739687,0.0003452,2]
[314847905,1708590646093,750.0,0.00025,3]
[314847933,1708591831571,-150.0,0.0003,2]
[314847934,1708591831581,-150.0,0.000302,2]
[314847935,1708591831590,-150.0,0.000304,2]
[314847936,1708591831600,-150.0,0.000306,2]
[314847937,1708591831609,-269.35376231,0.000308,2]
[314847938,1708591831618,-689.36,0.000309,2]
[314847939,1708591831629,-1409.43822506,0.00031612,4]
[314847940,1708591831638,-156.32009934,0.00031645,2]
[314847941,1708591831647,-2202.35,0.0003168,2]
[314847942,1708591831656,-9999.99,0.0003168,2]
[314847943,1708591831666,-499.99,0.0003168,2]
[314847944,1708591831675,-2196.61,0.00031746,2]
[314847945,1708591831685,-2186.98,0.00031874,2]
[314847946,1708591831695,-156.3200993,0.0003211,2]
[314847947,1708591831707,-2201.14,0.00032124,2]
[314847948,1708591831717,-353.49,0.0003247,2]
[314847949,1708591831727,-1000.0,0.00032493,2]
[314847950,1708591831739,-250.0,0.00032499,2]
[314847951,1708591831748,-250.0,0.00032573,2]
[314847952,1708591831758,-156.3200993,0.00032575,2]
[314847953,1708591831768,-2211.87,0.0003261,2]
[314847954,1708591831778,-237.32,0.00032636,2]
[314847955,1708591831787,-274.94,0.0003265,2]
[314847956,1708591831797,-222.96,0.00032692,2]
[314847957,1708591831806,-179.09,0.00032706,2]
[314847958,1708591831815,-545.55,0.0003275,2]
[314847959,1708591831825,-169.71,0.00032752,2]
[314847960,1708591831834,-2000.0,0.00032752,2]
[314847961,1708591831843,-23890.0,0.0003276,2]
[314847962,1708591831853,-152.7,0.00032761,2]
[314847963,1708591831862,-161.65,0.00032877,2]
[314847964,1708591831872,-360.49820868,0.00033,2]
[314847965,1708591831881,-156.3200993,0.0003304,2]
[314847966,1708591831891,-689.36,0.00033164,2]
[314847967,1708591831900,-2325.73,0.00033175,2]
[314847968,1708591831910,-2148.09,0.00033224,2]
[314847969,1708591831919,-156.3200993,0.00033505,2]
[314847970,1708591831928,-234.56,0.00033767,2]
[314847971,1708591831938,-173.73,0.00033767,2]
[314847972,1708591831947,-3260.11504741,0.00033833,2]
[314847973,1708591831956,-161.23468206,0.00033835,3]
[314847974,1708591831966,-150.0,0.00033873,2]
[314847975,1708591831975,-234.56,0.00033945,2]
[314847976,1708591831985,-150.0,0.00033962,2]
[314847978,1708591831994,-156.3200993,0.0003397,2]
[314847980,1708591832004,-166.01,0.00033971,2]
[314847982,1708591832013,-234.56,0.00034123,2]